bitfinex/quotes_ETHUSD_20241231
["timestamp","ask_amount","ask_price","bid_price","bid_amount"]
[1735653970006,2.68780674,3438.4,3438.2,1.48503397]
[1735653970637,2.68780674,3438.4,3438.3,0.0559595]
[1735653971052,2.68780674,3438.4,3437.8,4.2703236]
[1735653971242,2.68780674,3438.4,3438.3,0.0559595]
[1735653971449,2.68780674,3438.4,3437.8,2.78528963]
[1735653971855,2.68780674,3438.4,3437.9,0.0560038]
[1735653972559,2.90866,3438.0,3437.9,0.0560038]
[1735653972759,2.90892,3437.7,3437.6,1.20764874]
[1735653972912,3.70192,3437.7,3437.6,1.20764874]
[1735653973109,3.70192,3437.7,3437.6,1.25937341]
[1735653973314,0.793,3437.7,3437.6,1.25937341]
[1735653973618,3.70192,3437.7,3437.6,0.05172467]
[1735653973813,4.072112,3437.7,3437.6,0.05172467]
[1735653974058,4.072112,3437.7,3437.0,2.78528963]
[1735653974350,3.70192,3437.7,3437.0,2.78528963]
[1735653974551,3.70192,3437.7,3437.1,0.05042276]
[1735653974856,2.90911,3437.5,3437.1,0.05042276]
[1735653975052,3.70193,3437.7,3437.1,0.05042276]
[1735653975358,2.90931,3437.3,3437.2,0.05074601]
[1735653975562,2.90948,3437.1,3436.8,1.48684843]
[1735653975712,2.90959,3436.9,3436.8,1.48684843]
[1735653975922,3.70259,3436.9,3436.8,1.48684843]
[1735653976825,2.9099,3436.6,3435.7,1.20764874]
[1735653977054,1.06444709,3436.9,3435.9,2.78528963]
[1735653977326,2.90977,3436.7,3435.9,3.18458347]
[1735653977527,0.27144709,3436.8,3435.9,6.09501347]
[1735653977734,0.27144709,3436.8,3436.5,2.78528963]
[1735653978133,0.793,3437.2,3436.5,2.78528963]
[1735653978367,0.793,3437.2,3436.2,2.78528963]
[1735653978669,0.793,3437.2,3436.3,1.07186218]
[1735653979034,0.793,3437.2,3436.3,2.06419154]
[1735653979934,0.793,3437.2,3436.3,1.07186218]
[1735653980746,3.68269,3437.5,3436.0,1.20764874]
[1735653981075,0.7736,3436.6,3436.0,1.20764874]
[1735653981479,0.7736,3436.6,3435.8,2.78528963]
[1735653982774,0.7736,3437.2,3436.4,2.78528963]
[1735653983077,0.7736,3437.2,3436.4,3.35483559]
[1735653983719,0.7736,3437.2,3436.5,2.90993]
[1735653983920,0.7736,3437.2,3436.4,3.35483559]
[1735653983921,0.7736,3438.3,3437.0,2.78528963]
[1735653984132,2.90864,3438.1,3437.0,3.58798963]
[1735653984423,3.68202,3438.3,3437.3,5.69452963]
[1735653984639,3.68202,3438.3,3437.3,6.34425259]
[1735653985045,3.68202,3438.3,3437.3,3.43501259]
[1735653985343,2.90851,3438.2,3437.1,2.9094]
[1735653985635,2.90851,3438.2,3437.4,0.04158205]
[1735653985836,2.90851,3438.2,3437.2,0.04158331]
[1735653985999,2.90851,3438.2,3437.5,0.04155007]
[1735653986196,0.7736,3438.3,3436.9,2.90958]
[1735653986415,0.26405067,3438.2,3437.6,0.04153899]
[1735653986632,2.90869,3438.0,3436.9,0.67355092]
[1735653986828,0.7736,3438.1,3437.2,2.90933]
[1735653987037,0.7736,3438.1,3437.0,0.04160547]
[1735653987254,0.7736,3438.1,3437.5,2.90907]
[1735653987450,2.64050674,3438.4,3437.7,2.90891]
[1735653987945,2.64050674,3438.4,3437.8,0.04151684]
[1735653989109,2.64050674,3438.4,3437.6,0.29506422]
[1735653989303,2.64050674,3438.4,3437.9,0.04150576]
[1735653989510,2.64050674,3438.4,3437.6,0.29506422]
[1735653989706,2.64050674,3438.4,3438.0,0.04149468]
[1735653989911,2.64050674,3438.4,3437.6,3.20404422]
[1735653990112,2.64050674,3438.4,3438.1,0.04148361]
[1735653990317,2.64050674,3438.4,3437.5,0.8027]
[1735653990517,2.64050674,3438.4,3438.2,0.04147254]
[1735653990717,0.55487667,3438.3,3437.5,0.8027]
[1735653991012,2.64050674,3438.4,3438.3,0.04146146]
[1735653991213,2.64050674,3438.4,3437.6,2.909]
[1735653991418,2.64050674,3438.4,3437.5,0.8027]
[1735653991665,2.64050674,3438.4,3437.7,2.95042791]
[1735653991873,2.64050674,3438.4,3437.7,2.9089]
[1735653992017,2.64050674,3438.4,3437.8,0.04151684]
[1735653992224,1.86690674,3438.4,3437.8,0.41682852]
[1735653992405,1.86690674,3438.4,3437.8,0.04151684]
[1735653992754,1.86690674,3438.4,3438.0,2.90866]
[1735653992903,1.86690674,3438.4,3437.9,0.8027]
[1735653993109,1.86690674,3438.4,3438.1,0.04112838]
[1735653993309,1.86690674,3438.4,3437.9,3.71143]
[1735653993571,1.86690674,3438.4,3438.2,0.04111731]
[1735653993725,1.86690674,3438.4,3438.3,2.90841]
[1735653994060,1.86690674,3438.4,3438.3,2.94951624]
[1735653994404,0.7736,3439.4,3438.7,2.90799]
[1735653994611,0.7736,3440.2,3438.6,3.32234694]
[1735653994918,3.33308798,3440.1,3438.9,2.90782]
[1735653995256,3.33308798,3440.1,3438.8,0.55]
[1735653995257,0.42618798,3440.1,3438.8,0.55]
[1735653995419,0.42618798,3440.1,3439.1,2.90773]
[1735653995420,2.90692,3440.1,3439.1,2.90773]
[1735653995612,2.90692,3440.1,3438.9,0.04067772]
[1735653995843,0.7736,3440.2,3438.7,3.18517129]
[1735653995844,0.7736,3440.2,3439.2,0.04064452]
[1735653996051,3.7337,3439.7,3439.0,0.04066666]
[1735653996202,3.7337,3439.7,3439.3,0.04063345]
[1735653996558,0.37337,3439.6,3439.4,0.03961968]
[1735653996779,0.8264,3439.7,3438.6,3.32234694]
[1735653997264,0.8264,3440.4,3439.1,4.13754694]
[1735653997401,2.90662,3440.5,3439.2,0.8152]
[1735653997605,2.90662,3440.5,3439.2,0.85437545]
[1735653997807,2.90663,3440.5,3439.4,2.90539]
[1735653998036,0.8264,3440.3,3439.3,2.90756]
[1735653998239,0.8264,3440.3,3439.2,4.34695937]
[1735653998478,0.117063,3440.4,3439.4,0.03893064]
[1735653998602,2.9064,3440.7,3439.5,3.32234694]
[1735653998830,2.9064,3440.7,3439.6,2.9073]
[1735653999152,2.9064,3440.7,3439.7,0.03870959]
[1735653999303,0.172013,3440.9,3439.7,0.03870959]
[1735653999507,2.90652,3440.6,3439.7,0.03870959]
[1735653999704,0.290652,3440.5,3439.5,3.32234694]
[1735654000034,2.90662,3440.5,3439.8,0.03865679]
[1735654000233,2.90662,3440.5,3439.5,3.32234694]
[1735654000408,2.90662,3440.5,3439.9,0.03864572]
[1735654000609,2.90662,3440.5,3439.4,2.90745]
[1735654001121,2.90662,3440.5,3439.5,0.03868302]
[1735654001414,2.90683,3440.2,3439.5,0.03868302]
[1735654001603,0.290662,3440.4,3439.5,0.03868302]
[1735654001604,2.90672,3440.3,3439.5,0.03868302]
[1735654001806,2.90672,3440.3,3439.0,1.20048912]
[1735654002004,2.90672,3440.3,3439.6,0.03867891]
[1735654002280,2.90732,3439.6,3439.0,1.20048912]
[1735654002480,0.290732,3439.5,3438.7,1.77057047]
[1735654002642,2.90734,3439.6,3439.1,0.03873425]
[1735654002845,2.90747,3439.5,3438.7,1.20048912]
[1735654003063,0.55,3440.3,3439.2,0.03872318]
[1735654003246,2.90753,3439.4,3438.7,1.20048912]
[1735654003585,2.90753,3439.4,3438.5,2.57238042]
[1735654003586,0.55,3440.3,3438.5,0.7568]
[1735654003729,2.90768,3439.2,3438.8,0.03876746]
[1735654003932,0.290768,3439.2,3438.5,0.7568]
[1735654004169,0.290768,3439.2,3438.9,0.03875639]
[1735654004380,0.290768,3439.2,3438.5,0.7568]
[1735654004577,0.290768,3439.2,3439.0,0.03874532]
[1735654004879,0.290768,3439.2,3438.5,0.7568]
[1735654005081,0.290768,3439.2,3439.1,0.03748544]
[1735654005291,0.290768,3439.2,3438.5,0.7568]
[1735654005869,0.290768,3439.2,3438.6,0.03754079]
[1735654006104,2.90734,3439.6,3438.6,0.03754079]
[1735654006297,2.90765,3439.2,3438.6,0.03754079]
[1735654007114,2.90782,3439.0,3438.6,0.03754079]
[1735654007262,2.90734,3439.6,3438.1,0.7568]
[1735654007459,2.90809,3438.7,3438.1,0.7568]
[1735654007762,2.90808,3438.7,3438.2,0.03764075]
[1735654007962,0.290734,3439.5,3438.2,0.03764075]
[1735654008186,2.90748,3439.4,3437.6,0.7568]
[1735654008372,2.90848,3438.3,3437.6,0.7568]
[1735654009282,2.90756,3439.3,3437.6,0.7568]
[1735654009619,2.9082,3438.6,3437.6,0.7568]
[1735654009972,2.90826,3438.5,3437.7,0.55]
[1735654010808,2.90765,3439.2,3437.6,0.7568]
[1735654011005,2.90773,3439.1,3437.6,0.7568]
[1735654011163,2.90867,3438.0,3437.6,0.7568]
[1735654011710,0.35597861,3439.0,3437.6,0.7568]
[1735654011910,2.9085,3438.2,3437.6,0.7568]
[1735654012065,2.90835,3438.4,3437.7,3.32234694]
[1735654012270,0.35597861,3439.0,3437.7,3.32234694]
[1735654012271,0.35597861,3439.0,3437.8,0.55]
[1735654012577,2.90799,3438.8,3438.2,0.55]
[1735654012904,2.90799,3438.8,3438.1,3.32234694]
[1735654013210,2.90799,3438.8,3437.8,2.90876]
[1735654013211,2.90843,3438.3,3437.7,3.32234694]
[1735654013642,0.32637086,3438.9,3437.7,3.32234694]
[1735654013812,2.90814,3438.7,3437.8,0.55]
[1735654014339,3.23159109,3438.7,3437.8,0.55]
[1735654014864,2.90824,3438.6,3437.8,0.55]
[1735654015769,2.90824,3438.6,3437.9,0.03858565]
[1735654016071,0.32637086,3438.9,3438.2,0.55]
[1735654016226,0.32637086,3438.9,3438.1,3.32234694]
[1735654016227,2.90782,3439.0,3438.3,0.7574]
[1735654016566,2.90773,3439.2,3438.5,3.32234694]
[1735654016723,3.26371861,3439.1,3438.5,3.32234694]
[1735654016924,3.26371861,3439.1,3438.6,0.03866827]
[1735654017371,0.35597861,3439.1,3438.6,0.03866827]
[1735654017528,2.90793,3438.9,3438.6,0.03866827]
[1735654017726,0.65205609,3439.3,3438.6,0.03866827]
[1735654017964,2.90807,3438.7,3438.1,3.32234694]
[1735654018170,2.90815,3438.7,3438.1,3.32234694]
[1735654018340,2.90818,3438.6,3438.1,3.32234694]
[1735654018768,2.90748,3439.4,3438.1,3.32234694]
[1735654018969,2.90829,3438.5,3438.1,3.32234694]
[1735654019178,3.199119,3438.5,3438.1,3.32234694]
[1735654019675,0.290829,3438.5,3437.7,3.32234694]
[1735654019967,2.90864,3438.1,3437.7,3.32234694]
[1735654020130,2.9083,3438.5,3437.7,3.32234694]
[1735654020131,2.90844,3438.3,3437.7,3.32234694]
[1735654020761,2.90852,3438.2,3437.7,3.32234694]
[1735654021732,2.90807,3438.7,3437.7,3.32234694]
[1735654021970,0.63996063,3438.6,3437.7,3.32234694]
[1735654022141,3.54818063,3438.6,3438.1,3.32234694]
[1735654022345,0.59021229,3439.6,3438.2,0.7574]
[1735654022531,0.81139356,3439.9,3438.5,3.32234694]
[1735654022739,2.90746,3439.5,3438.9,3.32234694]
[1735654022936,2.9071,3439.9,3438.9,3.32234694]
[1735654022937,2.90735,3439.6,3438.9,3.32234694]
[1735654023485,2.90732,3439.6,3438.9,3.32234694]
[1735654023658,2.9074,3439.5,3438.9,3.32234694]
[1735654024678,0.25,3440.6,3438.9,3.32234694]
[1735654024892,2.9075,3439.4,3438.9,3.32234694]
[1735654026116,0.25,3440.2,3438.5,3.32234694]
[1735654026409,2.90806,3438.8,3438.3,0.8024]
[1735654027294,0.340642,3440.5,3438.5,3.32234694]
[1735654027450,2.90689,3440.1,3438.5,3.32234694]
[1735654027650,2.90697,3440.0,3438.5,3.32234694]
[1735654027875,2.90689,3440.1,3438.5,3.32234694]
[1735654028080,2.90764,3439.3,3438.5,3.32234694]
[1735654028394,2.90743,3439.5,3438.6,0.55]
[1735654028597,2.90743,3439.5,3438.8,0.8024]
[1735654030689,2.90743,3439.5,3438.9,0.03495575]
[1735654031507,2.90725,3439.7,3438.9,3.35730269]
[1735654034700,2.90758,3439.3,3438.9,0.03495575]
[1735654036795,2.9068,3440.2,3438.9,0.03495575]
[1735654037100,2.90689,3440.1,3438.9,0.03495575]
[1735654037306,2.90757,3439.3,3438.9,0.03495575]
[1735654037465,0.290757,3439.3,3438.9,0.03495575]
[1735654037664,2.90771,3439.2,3438.9,0.03495575]
[1735654038106,2.90771,3439.2,3438.8,0.8024]
[1735654038399,2.90743,3439.5,3438.9,0.03448935]
[1735654038604,2.90727,3439.7,3438.9,0.03448935]
[1735654038765,2.9062,3441.0,3439.4,0.8024]
[1735654038961,0.25,3441.4,3439.5,0.55]
[1735654039162,2.9063,3440.8,3439.5,0.58440206]
[1735654039360,0.172013,3440.9,3439.8,0.8024]
[1735654039580,2.90662,3440.5,3439.8,0.8024]
[1735654039819,2.90664,3440.4,3439.9,0.03423947]
[1735654041113,2.90639,3440.7,3439.9,0.03423947]
[1735654041293,3.078253,3440.9,3440.1,3.32234694]
[1735654041694,0.172013,3440.9,3440.2,0.03387225]
[1735654042005,2.90633,3440.8,3440.2,0.03387225]
[1735654042181,2.90633,3440.8,3439.9,0.55]
[1735654042362,2.90633,3440.8,3440.3,0.03386118]
[1735654042568,3.27102902,3440.8,3439.9,0.55]
[1735654042762,3.27102902,3440.8,3440.4,0.03385012]
[1735654042963,3.27102902,3440.8,3440.5,0.7777]
[1735654043195,3.27102902,3440.8,3440.5,0.81153907]
[1735654043591,0.172013,3440.9,3440.5,0.81153907]
[1735654043791,3.078253,3440.9,3440.5,0.81153907]
[1735654043998,3.078253,3440.9,3440.5,0.7777]
[1735654044197,0.172013,3440.9,3440.5,0.7777]
[1735654044501,0.172013,3440.9,3440.6,0.03382801]
[1735654044882,2.90638,3440.7,3440.6,0.03382801]
[1735654045185,2.90672,3440.3,3439.6,0.7777]
[1735654045565,2.90672,3440.3,3439.7,0.03264735]
[1735654046206,2.90663,3440.5,3439.7,0.03264735]
[1735654046395,2.90664,3440.4,3439.7,0.03264735]
[1735654046996,0.5984593,3440.7,3439.7,0.03264735]
[1735654046997,2.90714,3439.8,3439.7,0.03264735]
[1735654047373,2.90732,3439.6,3439.3,0.7777]
[1735654047878,2.90765,3439.2,3439.1,1.20153433]
[1735654048107,2.90757,3439.3,3439.1,1.20153433]
[1735654048606,2.90757,3439.3,3439.0,4.56556773]
[1735654048607,2.90757,3439.3,3439.0,0.7777]
[1735654049106,0.290757,3439.2,3438.6,0.7777]
[1735654049406,3.198437,3439.2,3438.6,0.7777]
[1735654049892,0.290757,3439.2,3438.6,0.7777]
[1735654050094,2.9078,3439.1,3438.6,0.7777]
[1735654050411,2.90748,3439.5,3438.4,0.99370397]
[1735654050913,2.90811,3438.7,3438.3,0.7777]
[1735654051309,2.90748,3439.4,3437.9,1.97923433]
[1735654051500,2.90773,3439.1,3437.9,1.97923433]
[1735654051697,2.90748,3439.4,3437.9,1.97923433]
[1735654051899,2.90849,3438.3,3437.9,0.7777]
[1735654052214,2.90859,3438.1,3437.9,0.7777]
[1735654052519,2.90875,3437.9,3437.8,1.49023853]
[1735654053376,2.9091,3437.5,3437.1,0.7777]
[1735654053698,0.290859,3438.1,3437.1,0.7777]
[1735654054013,2.90901,3437.6,3437.1,0.7777]
[1735654054570,2.90832,3438.4,3437.2,0.55]
[1735654054774,2.90869,3438.0,3437.2,0.55]
[1735654055323,0.59745621,3439.0,3437.5,0.7777]
[1735654055476,2.90879,3437.9,3437.5,0.7777]
[1735654055829,2.90879,3437.9,3437.6,0.03308503]
[1735654056115,0.59745621,3439.0,3437.2,0.8146]
[1735654056116,2.90892,3437.7,3437.2,0.8146]
[1735654056313,2.90898,3437.7,3437.2,0.8146]
[1735654056503,2.90898,3437.7,3437.3,0.03311827]
[1735654056701,0.290898,3437.7,3437.3,0.03311827]
[1735654056919,2.90894,3437.7,3437.2,0.8146]
[1735654057207,2.90874,3438.0,3437.3,0.03304169]
[1735654058119,2.90832,3438.5,3437.3,0.03304169]
[1735654058120,2.90917,3437.4,3437.3,0.03304169]
[1735654058277,2.90928,3437.3,3436.7,0.79764169]
[1735654059340,3.200318,3437.2,3436.7,0.79764169]
[1735654059775,0.290928,3437.2,3436.7,0.79764169]
[1735654059979,2.90919,3437.4,3436.7,0.79764169]
[1735654060679,2.90919,3437.4,3436.8,0.03203748]
[1735654061531,2.90919,3437.4,3436.7,0.79764169]
[1735654061829,2.90898,3437.7,3436.8,0.03099838]
[1735654062128,3.32234694,3437.8,3435.9,0.8146]
[1735654062278,2.90996,3436.5,3435.9,0.8146]
[1735654062480,0.0236,3437.1,3436.0,0.03139344]
[1735654062680,2.90973,3436.8,3436.0,0.03139344]
[1735654062920,2.90987,3436.6,3436.0,0.03139344]
[1735654063484,2.90951,3437.0,3436.0,0.03139344]
[1735654063819,2.90971,3436.8,3436.0,0.03139344]
[1735654064019,2.90937,3437.2,3436.2,0.55]
[1735654064325,2.90948,3437.1,3436.2,0.55]
[1735654064499,2.90948,3437.1,3436.3,0.03088167]
[1735654064827,2.90929,3437.3,3436.4,0.8146]
[1735654064989,3.200289,3437.2,3436.4,0.84444725]
[1735654065190,3.254809,3437.2,3436.4,0.81345425]
[1735654065493,2.90975,3436.8,3436.4,0.783607]
[1735654067115,2.90942,3437.1,3436.4,0.783607]
[1735654067310,0.345429,3437.2,3435.5,3.48625976]
[1735654067527,2.91006,3436.4,3435.4,2.91079]
[1735654067724,2.90988,3436.6,3435.6,0.02996382]
[1735654067910,0.65770159,3437.1,3435.5,2.91076]
[1735654067911,0.65770159,3437.1,3435.5,0.02998187]
[1735654068127,0.65770159,3437.1,3435.0,2.91116]
[1735654068128,2.91007,3436.4,3435.7,0.02995969]
[1735654068292,2.91007,3436.4,3435.8,0.8146]
[1735654068482,3.201077,3436.4,3435.8,0.8445486]
[1735654069328,0.291007,3436.4,3435.8,0.8445486]
[1735654072226,0.291007,3436.4,3435.8,0.8146]
[1735654072745,2.90968,3436.8,3435.8,0.8146]
[1735654073099,2.90968,3436.8,3435.9,0.8013]
[1735654074292,0.65770159,3437.1,3435.9,0.8013]
[1735654074891,2.90977,3436.7,3435.9,0.8013]
[1735654075131,2.90985,3436.7,3435.9,0.8013]
[1735654075427,0.290985,3436.6,3435.9,0.8013]
[1735654075756,2.90967,3436.9,3435.9,0.8013]
[1735654076493,2.90967,3436.9,3435.9,3.71172]
[1735654077703,0.65770159,3437.1,3435.9,0.8013]
[1735654077898,2.90951,3437.0,3435.9,0.8013]
[1735654078126,2.90968,3436.8,3435.9,0.8013]
[1735654078342,3.26641816,3436.8,3435.9,0.8013]
[1735654079443,2.90987,3436.6,3435.9,0.8013]
[1735654079606,2.90995,3436.5,3435.9,0.8013]
[1735654080162,2.9098,3436.7,3435.9,0.8013]
[1735654080716,3.26644816,3436.8,3435.9,0.8013]
[1735654081403,3.23644482,3436.7,3435.9,0.8013]
[1735654082138,0.32664482,3436.7,3435.9,0.8013]
[1735654082467,2.90993,3436.5,3435.9,0.8013]
[1735654083255,2.91002,3436.4,3435.9,0.8013]
[1735654083572,0.0545,3436.5,3435.5,0.8013]
[1735654083699,2.91036,3436.0,3435.5,0.8013]
[1735654084166,2.9102,3436.2,3435.5,0.8013]
[1735654084511,2.91028,3436.1,3435.5,0.8013]
[1735654085247,3.26184685,3436.5,3435.5,0.8013]
[1735654085571,3.26886917,3436.4,3435.5,0.8013]
[1735654086377,0.35884917,3436.4,3435.5,0.8013]
[1735654086500,0.32664482,3436.7,3435.8,2.91052]
[1735654086698,0.32664482,3436.7,3435.9,0.8308]
[1735654087321,2.91003,3436.4,3435.9,0.8308]
[1735654087521,2.91012,3436.3,3435.9,0.8308]
[1735654087775,2.91012,3436.3,3436.0,0.04263899]
[1735654088241,2.91027,3436.1,3436.0,0.04263899]
[1735654088451,2.91027,3436.1,3435.6,0.8308]
[1735654088682,0.291027,3436.1,3436.0,0.04263899]
[1735654088962,2.90984,3436.7,3435.6,0.8308]
[1735654089162,2.90984,3436.7,3436.0,0.04263899]
[1735654089327,2.91005,3436.4,3435.6,0.8308]
[1735654089524,2.91005,3436.4,3435.7,0.04269444]
[1735654092444,0.0545,3436.8,3435.7,0.04269444]
[1735654092633,0.296411,3436.7,3435.8,3.61178553]
[1735654092831,2.90967,3436.9,3435.9,3.74123]
[1735654093061,2.90967,3436.9,3436.0,0.8308]
[1735654093241,2.90967,3436.9,3436.0,0.87343899]
[1735654093566,0.0545,3437.4,3436.2,0.8308]
[1735654093773,2.90934,3437.3,3436.3,2.9101]
[1735654093943,3.205764,3437.2,3436.2,0.8308]
[1735654094159,3.205764,3437.2,3436.3,1.03633801]
[1735654094700,0.296384,3437.2,3436.3,1.03633801]
[1735654094836,2.90985,3436.6,3436.3,1.03633801]
[1735654095176,2.90985,3436.6,3436.4,2.48600268]
[1735654095480,2.9097,3436.8,3436.4,2.52856776]
[1735654095637,2.9097,3436.8,3436.4,0.04256508]
[1735654095833,2.9097,3436.8,3436.2,0.8308]
[1735654096053,0.29642,3436.7,3436.5,0.04254661]
[1735654096275,0.29642,3436.7,3436.2,0.8308]
[1735654096478,2.9097,3436.8,3436.6,0.04252813]
[1735654096678,2.9097,3436.8,3436.3,0.99589792]
[1735654096892,2.9097,3436.8,3436.7,0.04250966]
[1735654097079,2.9097,3436.8,3436.3,0.99589792]
[1735654097380,2.9097,3436.8,3436.2,0.8308]
[1735654097381,2.9097,3436.8,3436.2,2.03233433]
[1735654097558,3.20074,3436.7,3436.4,0.04256508]
[1735654097766,3.20074,3436.7,3436.2,2.03233433]
[1735654097994,3.20074,3436.7,3436.3,1.4960431]
[1735654098201,3.20074,3436.7,3436.3,1.53862666]
[1735654098806,3.20074,3436.7,3436.4,2.4938587]
[1735654099103,3.135041,3436.7,3436.4,2.53627278]
[1735654099309,2.90977,3436.7,3436.4,2.53627278]
[1735654099610,2.90948,3437.1,3436.4,2.53627278]
[1735654099774,2.90948,3437.1,3436.5,0.9978156]
[1735654099976,2.9093,3437.3,3436.6,0.87317713]
[1735654100677,2.9093,3437.3,3436.7,2.49428324]
[1735654101103,2.9093,3437.3,3436.8,0.0427814]
[1735654101506,2.96342,3437.7,3436.8,2.49428324]
[1735654101675,2.90925,3437.4,3436.9,0.04276293]
[1735654102482,2.90925,3437.4,3436.7,1.20153433]
[1735654102683,2.90925,3437.4,3437.0,1.04101909]
[1735654103009,2.90933,3437.3,3437.0,0.99827463]
[1735654103307,2.90933,3437.3,3437.1,0.04272599]
[1735654103494,3.2298972,3437.3,3437.1,0.04272599]
[1735654104109,3.2298972,3437.3,3436.6,2.03233433]
[1735654104309,2.90933,3437.3,3437.2,0.04270752]
[1735654104512,2.90933,3437.3,3436.6,2.03233433]
[1735654104687,2.90933,3437.3,3437.2,0.04270752]
[1735654104887,2.90933,3437.3,3436.6,2.03233433]
[1735654105117,2.90933,3437.3,3437.2,0.04270752]
[1735654105283,3.205382,3437.6,3437.2,0.04270752]
[1735654105503,2.9091,3437.5,3437.2,0.8281]
[1735654105701,2.9091,3437.5,3437.3,0.04238716]
[1735654106021,2.9091,3437.5,3437.2,0.8281]
[1735654106229,0.296342,3437.6,3437.2,0.8281]
[1735654106396,0.0545,3438.0,3437.3,0.04238716]
[1735654106589,2.90885,3437.8,3437.3,0.04238716]
[1735654106789,2.90885,3437.8,3437.2,0.8281]
[1735654107925,0.0545,3438.9,3437.8,0.8281]
[1735654108131,2.90838,3438.4,3437.8,0.8281]
[1735654108423,0.0545,3438.9,3438.0,2.78098553]
[1735654108621,2.90815,3438.7,3438.0,2.78098553]
[1735654109391,2.90815,3438.7,3438.1,0.8281]
[1735654109790,2.90789,3439.0,3438.1,0.8281]
[1735654109991,0.35315839,3438.9,3438.1,0.8281]
[1735654110231,2.90825,3438.5,3438.1,0.8281]
[1735654112473,3.53142388,3439.1,3438.1,0.8281]
[1735654112787,2.90811,3438.7,3438.1,0.8281]
[1735654114938,2.90788,3439.0,3438.4,2.78098553]
[1735654115173,2.90797,3438.9,3438.4,2.78098553]
[1735654115323,2.90808,3438.7,3438.4,2.78098553]
[1735654116333,2.90773,3439.1,3438.4,2.78098553]
[1735654116528,2.90795,3438.9,3438.4,2.78098553]
[1735654117034,2.90795,3438.9,3438.5,0.8156]
[1735654117347,2.90681,3440.2,3438.5,0.8156]
[1735654117348,2.90768,3439.2,3438.7,2.78098553]
[1735654117652,2.90776,3439.1,3438.7,2.78098553]
[1735654121332,2.90763,3439.3,3438.7,2.78098553]
[1735654121750,2.90768,3439.2,3438.7,2.78098553]
[1735654122950,2.90768,3439.2,3438.5,0.8156]
[1735654123134,2.90775,3439.1,3438.5,0.8156]
[1735654129306,0.59139063,3439.8,3438.7,2.78098553]
[1735654129440,2.90748,3439.4,3438.1,1.4000523]
[1735654129639,2.90832,3438.5,3438.1,0.8156]
[1735654130680,2.90834,3438.4,3438.1,0.8156]
[1735654131609,2.90875,3437.9,3437.8,0.8205]
[1735654131804,2.90909,3437.5,3437.4,0.8205]
[1735654132084,2.90942,3437.1,3437.0,0.8205]
[1735654132686,2.90951,3437.0,3436.9,1.20153433]
[1735654132841,2.90951,3437.0,3436.7,0.8205]
[1735654133840,2.90967,3436.9,3436.7,0.8205]
[1735654134286,2.90945,3437.1,3436.7,0.8205]
[1735654134448,2.90951,3437.0,3436.7,0.8205]
[1735654135487,2.90937,3437.2,3436.7,3.60148553]
[1735654135657,2.90925,3437.4,3437.0,2.78098553]
[1735654135863,2.90899,3437.7,3437.1,0.8205]
[1735654136084,2.90883,3437.8,3436.7,2.78098553]
[1735654136289,2.90934,3437.2,3437.0,0.8205]
[1735654136862,2.90942,3437.1,3437.0,0.8205]
[1735654138300,2.90926,3437.3,3437.0,0.8205]
[1735654138899,2.909,3437.6,3437.0,0.8205]
[1735654139286,0.0545,3438.2,3437.0,1.18064855]
[1735654139471,2.90912,3437.5,3437.0,0.8205]
[1735654139794,2.9092,3437.4,3437.0,0.8205]
[1735654140575,2.90892,3437.7,3437.0,0.8205]
[1735654140774,2.90905,3437.6,3437.0,0.8205]
[1735654141102,2.90926,3437.3,3437.0,0.8205]
[1735654142401,2.9091,3437.5,3437.0,0.8205]
[1735654142761,2.90891,3437.8,3437.0,0.8205]
[1735654142966,2.90891,3437.8,3437.2,0.8205]
[1735654143480,2.90841,3438.3,3437.2,0.8205]
[1735654143677,0.0545,3438.5,3437.3,0.8205]
[1735654143878,2.90845,3438.3,3437.3,0.8205]
[1735654144063,2.90845,3438.3,3437.5,0.8205]
[1735654144577,2.90858,3438.1,3437.5,0.8205]
[1735654145107,2.90869,3438.0,3437.5,0.8205]
[1735654146321,2.90834,3438.4,3437.5,0.8205]
[1735654146493,2.90841,3438.4,3437.5,0.8205]
[1735654146695,2.90845,3438.3,3437.5,1.59842507]
[1735654147017,2.90851,3438.2,3437.5,1.59842507]
[1735654147174,2.90851,3438.2,3437.5,0.8205]
[1735654147687,2.9086,3438.1,3437.5,0.8205]
[1735654148290,2.9087,3438.0,3437.5,0.8205]
[1735654150101,0.0545,3438.8,3437.5,0.8205]
[1735654150279,0.0545,3438.8,3437.0,0.8243]
[1735654150280,2.909,3437.6,3437.0,0.8243]
[1735654150679,2.90906,3437.6,3437.0,0.8243]
[1735654151090,2.90841,3438.3,3437.0,0.8243]
[1735654151292,2.90906,3437.6,3437.0,0.8243]
[1735654153333,2.83548553,3438.5,3437.0,0.8243]
[1735654153334,2.90885,3437.8,3437.0,0.8243]
[1735654153541,0.0545,3438.5,3437.3,0.8243]
[1735654153708,2.90869,3438.0,3437.3,0.8243]
[1735654153913,0.0545,3438.5,3437.3,0.8243]
[1735654154119,2.90873,3438.0,3437.3,0.8243]
[1735654154428,2.90877,3437.9,3437.3,0.8243]
[1735654154815,0.0545,3438.5,3437.3,0.8243]
[1735654155009,2.90891,3437.8,3437.3,0.8243]
[1735654156126,2.90852,3438.2,3437.3,0.8243]
[1735654156351,2.9087,3438.0,3437.3,0.8243]
[1735654156525,0.66305296,3438.5,3437.3,0.8243]
[1735654156833,2.90875,3437.9,3437.3,0.8243]
[1735654157226,0.66305296,3438.5,3437.3,0.8243]
[1735654157227,0.66305296,3438.5,3437.4,0.8243]
[1735654157410,2.96277,3438.5,3437.4,0.8243]
[1735654157741,2.90857,3438.2,3437.4,0.8243]
[1735654158152,0.0545,3438.8,3437.4,0.8243]
[1735654158330,2.90864,3438.1,3437.4,0.8243]
[1735654158638,2.90807,3438.7,3437.4,0.8243]
[1735654158850,2.90843,3438.3,3437.4,0.8243]
[1735654159342,2.90828,3438.5,3437.6,0.8243]
[1735654159640,2.90814,3438.7,3437.9,0.8243]
[1735654159816,2.9081,3438.7,3437.9,0.8243]